[Event "Early-Titled-Tuesday-Blitz-January-23-2024"]
[Site "Chess.com"]
[Date "2024.01.23"]
[Round "2"]
[White "WiktoriaPOL"]
[Black "Zgorl"]
[Result "0-1"]
[WhiteElo "2254"]
[BlackElo "2509"]
[TimeControl "180+1"]
[EndTime "8:16:37 PST"]
[Termination "Zgorl won by checkmate"]

1. c4 {[%clk 0:02:57.4]} 1... g6 {[%clk 0:02:58.3]} 2. Nc3 {[%clk 0:02:57.2]}
2... Bg7 {[%clk 0:02:57.3]} 3. g3 {[%clk 0:02:57.8]} 3... Nf6 {[%clk 0:02:56.2]}
4. Bg2 {[%clk 0:02:58.4]} 4... O-O {[%clk 0:02:56.1]} 5. e4 {[%clk 0:02:59]}
5... d6 {[%clk 0:02:56.2]} 6. Nge2 {[%clk 0:02:59.6]} 6... c5 {[%clk 0:02:56.3]}
7. O-O {[%clk 0:02:59.6]} 7... Nc6 {[%clk 0:02:56.7]} 8. d3 {[%clk 0:02:59.7]}
8... a6 {[%clk 0:02:53.1]} 9. h3 {[%clk 0:02:59.2]} 9... Rb8 {[%clk 0:02:53.4]}
10. a4 {[%clk 0:02:57.9]} 10... Nd4 {[%clk 0:02:46.4]} 11. Rb1 {[%clk 0:02:57]}
11... Bd7 {[%clk 0:02:29.6]} 12. b4 {[%clk 0:02:54.5]} 12... b6 {[%clk
0:02:26.7]} 13. Be3 {[%clk 0:02:51.3]} 13... Nxe2+ {[%clk 0:02:25.1]} 14. Nxe2
{[%clk 0:02:49.6]} 14... Qc7 {[%clk 0:02:20.1]} 15. f4 {[%clk 0:02:40.1]} 15...
Bc6 {[%clk 0:02:18.6]} 16. Nc3 {[%clk 0:02:38.9]} 16... Nd7 {[%clk 0:02:12.6]}
17. Qc2 {[%clk 0:02:33.1]} 17... Ba8 {[%clk 0:02:03.5]} 18. Nd5 {[%clk
0:02:23.1]} 18... Bxd5 {[%clk 0:01:57.6]} 19. cxd5 {[%clk 0:02:22.6]} 19... Rfc8
{[%clk 0:01:56.8]} 20. Rfc1 {[%clk 0:02:17.2]} 20... Qd8 {[%clk 0:01:50.6]} 21.
Qb3 {[%clk 0:02:06.8]} 21... cxb4 {[%clk 0:01:40.9]} 22. Qxb4 {[%clk 0:02:05.5]}
22... Nc5 {[%clk 0:01:39.5]} 23. Qa3 {[%clk 0:01:50.2]} 23... Qd7 {[%clk
0:01:37]} 24. Rc4 {[%clk 0:01:29.4]} 24... b5 {[%clk 0:01:29.3]} 25. axb5 {[%clk
0:01:27.9]} 25... axb5 {[%clk 0:01:26.9]} 26. Rc2 {[%clk 0:00:52.9]} 26... Ra8
{[%clk 0:01:13.6]} 27. Qb4 {[%clk 0:00:49]} 27... Nxd3 {[%clk 0:01:11.7]} 28.
Rxc8+ {[%clk 0:00:44.1]} 28... Qxc8 {[%clk 0:01:08.1]} 29. Qxb5 {[%clk
0:00:42.9]} 29... Qc2 {[%clk 0:01:07.6]} 30. Bf1 {[%clk 0:00:28.3]} 30... Ra2
{[%clk 0:01:01.1]} 31. Qe8+ {[%clk 0:00:13.8]} 31... Bf8 {[%clk 0:00:59.8]} 32.
Rb8 {[%clk 0:00:02.9]} 32... Qh2# {[%clk 0:00:57.8]} 0-1

[Event "Early-Titled-Tuesday-Blitz-January-23-2024"]
[Site "Chess.com"]
[Date "2024.01.23"]
[Round "2"]
[White "Statham_01"]
[Black "kekic76"]
[Result "1-0"]
[WhiteElo "2533"]
[BlackElo "2317"]
[TimeControl "180+1"]
[EndTime "8:16:40 PST"]
[Termination "Statham_01 won by resignation"]

1. Nc3 {[%clk 0:03:00.9]} 1... d5 {[%clk 0:02:56.9]} 2. d4 {[%clk 0:03:00.2]}
2... Nf6 {[%clk 0:02:53.5]} 3. Bf4 {[%clk 0:02:59.7]} 3... a6 {[%clk 0:02:35.8]}
4. e3 {[%clk 0:02:58.1]} 4... c5 {[%clk 0:02:33.9]} 5. Nf3 {[%clk 0:02:55.2]}
5... Nc6 {[%clk 0:02:33.8]} 6. Be2 {[%clk 0:02:51.2]} 6... e6 {[%clk 0:02:29.4]}
7. O-O {[%clk 0:02:48.8]} 7... Be7 {[%clk 0:02:20.3]} 8. Ne5 {[%clk 0:02:42.6]}
8... cxd4 {[%clk 0:02:14.2]} 9. exd4 {[%clk 0:02:40.3]} 9... Ne4 {[%clk
0:02:11.7]} 10. Nxe4 {[%clk 0:02:27.2]} 10... dxe4 {[%clk 0:02:10.4]} 11. Nxc6
{[%clk 0:02:27.9]} 11... bxc6 {[%clk 0:02:10.7]} 12. c3 {[%clk 0:02:22.5]} 12...
O-O {[%clk 0:02:05.3]} 13. Qc2 {[%clk 0:02:22.3]} 13... f5 {[%clk 0:02:04.5]}
14. Rad1 {[%clk 0:02:20.9]} 14... g5 {[%clk 0:01:48.1]} 15. Be5 {[%clk
0:02:20.4]} 15... Bf6 {[%clk 0:01:43]} 16. f4 {[%clk 0:02:08.6]} 16... g4 {[%clk
0:01:32.8]} 17. h3 {[%clk 0:01:42.1]} 17... gxh3 {[%clk 0:01:15.6]} 18. gxh3
{[%clk 0:01:42.2]} 18... Bxe5 {[%clk 0:01:15.5]} 19. dxe5 {[%clk 0:01:41.1]}
19... Qh4 {[%clk 0:01:15.8]} 20. Kh2 {[%clk 0:01:35.3]} 20... Kh8 {[%clk
0:01:14.7]} 21. Bc4 {[%clk 0:01:22.8]} 21... Rg8 {[%clk 0:01:08.3]} 22. Qf2
{[%clk 0:01:18.5]} 22... Qh6 {[%clk 0:00:41]} 23. Rd6 {[%clk 0:00:52.4]} 23...
Qg6 {[%clk 0:00:24.2]} 24. Rg1 {[%clk 0:00:48.9]} 24... Qe8 {[%clk 0:00:22.3]}
25. Rxg8+ {[%clk 0:00:46.1]} 25... Qxg8 {[%clk 0:00:23.2]} 26. Qh4 {[%clk
0:00:43.6]} 26... Bb7 {[%clk 0:00:14.4]} 27. Qf6+ {[%clk 0:00:43.5]} 27... Qg7
{[%clk 0:00:14.7]} 28. Qxg7+ {[%clk 0:00:44.4]} 28... Kxg7 {[%clk 0:00:14.9]}
29. Rd7+ {[%clk 0:00:45.3]} 1-0

[Event "Early-Titled-Tuesday-Blitz-January-23-2024"]
[Site "Chess.com"]
[Date "2024.01.23"]
[Round "2"]
[White "Ginger_GM"]
[Black "the_blue_pill"]
[Result "1-0"]
[WhiteElo "2683"]
[BlackElo "2271"]
[TimeControl "180+1"]
[EndTime "8:16:41 PST"]
[Termination "Ginger_GM won by resignation"]

1. d4 {[%clk 0:03:00.9]} 1... d5 {[%clk 0:02:29.5]} 2. Nc3 {[%clk 0:02:59.7]}
2... Bf5 {[%clk 0:02:26.6]} 3. f3 {[%clk 0:02:58.9]} 3... Nf6 {[%clk 0:02:25.6]}
4. g4 {[%clk 0:02:56.1]} 4... Bg6 {[%clk 0:02:24.5]} 5. h4 {[%clk 0:02:55.8]}
5... h5 {[%clk 0:02:16.3]} 6. g5 {[%clk 0:02:54.7]} 6... Ng8 {[%clk 0:02:12.8]}
7. Nh3 {[%clk 0:02:53.3]} 7... e6 {[%clk 0:02:10.6]} 8. Nf4 {[%clk 0:02:52.7]}
8... Ne7 {[%clk 0:02:04.7]} 9. e4 {[%clk 0:02:51.6]} 9... c6 {[%clk 0:01:59.9]}
10. Be3 {[%clk 0:02:47.7]} 10... Nd7 {[%clk 0:01:59]} 11. Bd3 {[%clk 0:02:43.6]}
11... Qc7 {[%clk 0:01:49.1]} 12. Qe2 {[%clk 0:02:39.6]} 12... a6 {[%clk
0:01:39.1]} 13. O-O-O {[%clk 0:02:36.1]} 13... b5 {[%clk 0:01:37.9]} 14. Nxg6
{[%clk 0:02:34.1]} 14... Nxg6 {[%clk 0:01:29.3]} 15. exd5 {[%clk 0:02:33.9]}
15... cxd5 {[%clk 0:01:22.7]} 16. Nxd5 {[%clk 0:02:23.4]} 16... exd5 {[%clk
0:01:11]} 17. Bf4+ {[%clk 0:02:22.2]} 17... Nde5 {[%clk 0:01:05]} 18. Bxg6
{[%clk 0:02:17.4]} 18... fxg6 {[%clk 0:00:59.8]} 19. Bxe5 {[%clk 0:02:16.4]}
19... Qe7 {[%clk 0:00:57.2]} 20. f4 {[%clk 0:02:13.9]} 20... Kf7 {[%clk
0:00:54.5]} 21. Rhf1 {[%clk 0:01:59.8]} 21... Qd7 {[%clk 0:00:54.3]} 22. Qg2
{[%clk 0:01:34.2]} 22... Rd8 {[%clk 0:00:47.3]} 23. f5 {[%clk 0:01:32.3]} 23...
gxf5 {[%clk 0:00:47.3]} 24. g6+ {[%clk 0:01:32.1]} 24... Kg8 {[%clk 0:00:47.6]}
25. Qg5 {[%clk 0:01:21.2]} 25... Be7 {[%clk 0:00:47.1]} 26. Qxf5 {[%clk
0:01:21.2]} 26... Qxf5 {[%clk 0:00:43.9]} 27. Rxf5 {[%clk 0:01:21.1]} 27... Bxh4
{[%clk 0:00:39.6]} 28. Rf7 {[%clk 0:01:10.7]} 28... Bg5+ {[%clk 0:00:36.7]} 29.
Kb1 {[%clk 0:01:10.2]} 29... Bh6 {[%clk 0:00:33.6]} 30. Rh1 {[%clk 0:01:07.6]}
30... Re8 {[%clk 0:00:28.6]} 31. Ra7 {[%clk 0:01:01.6]} 31... h4 {[%clk
0:00:15.8]} 32. Rxh4 {[%clk 0:00:58.2]} 32... Rf8 {[%clk 0:00:14.5]} 33. a3
{[%clk 0:00:57.1]} 33... Re8 {[%clk 0:00:14]} 34. Rh1 {[%clk 0:00:52.5]} 1-0

[Event "Early-Titled-Tuesday-Blitz-January-23-2024"]
[Site "Chess.com"]
[Date "2024.01.23"]
[Round "2"]
[White "Kopytkin"]
[Black "HamedWafa4"]
[Result "0-1"]
[WhiteElo "2393"]
[BlackElo "2726"]
[TimeControl "180+1"]
[EndTime "8:16:42 PST"]
[Termination "HamedWafa4 won on time"]

1. d4 {[%clk 0:03:00.9]} 1... g6 {[%clk 0:02:58.5]} 2. Nf3 {[%clk 0:02:56.7]}
2... Bg7 {[%clk 0:02:57.6]} 3. Bg5 {[%clk 0:02:57.3]} 3... c5 {[%clk 0:02:55.5]}
4. e3 {[%clk 0:02:56.2]} 4... Qb6 {[%clk 0:02:55]} 5. Nc3 {[%clk 0:02:55.6]}
5... h6 {[%clk 0:02:49.6]} 6. Bh4 {[%clk 0:02:48.4]} 6... cxd4 {[%clk
0:02:47.6]} 7. exd4 {[%clk 0:02:47.2]} 7... Nc6 {[%clk 0:02:47.6]} 8. Bc4 {[%clk
0:02:30.3]} 8... d6 {[%clk 0:01:51.8]} 9. O-O {[%clk 0:02:21]} 9... Bg4 {[%clk
0:01:43.7]} 10. h3 {[%clk 0:02:15]} 10... Bxf3 {[%clk 0:01:39.6]} 11. Qxf3
{[%clk 0:02:15.9]} 11... Nf6 {[%clk 0:01:39.8]} 12. Bxf6 {[%clk 0:01:54.2]}
12... Bxf6 {[%clk 0:01:33]} 13. Nd5 {[%clk 0:01:53]} 13... Qxd4 {[%clk
0:01:27.6]} 14. Rad1 {[%clk 0:00:57.6]} 14... Qxc4 {[%clk 0:01:09.5]} 15. Nxf6+
{[%clk 0:00:57.3]} 15... exf6 {[%clk 0:01:10.2]} 16. Qxf6 {[%clk 0:00:56.9]}
16... O-O {[%clk 0:01:10.3]} 17. h4 {[%clk 0:00:43]} 17... Qxc2 {[%clk
0:01:04.4]} 18. h5 {[%clk 0:00:35.6]} 18... Qf5 {[%clk 0:01:04.2]} 19. Qxf5
{[%clk 0:00:35.4]} 19... gxf5 {[%clk 0:01:05.1]} 20. Rxd6 {[%clk 0:00:35.8]}
20... Kg7 {[%clk 0:01:05.3]} 21. Rd7 {[%clk 0:00:26.5]} 21... Rab8 {[%clk
0:00:58.7]} 22. Rc1 {[%clk 0:00:15.2]} 22... Rfd8 {[%clk 0:00:58.2]} 23. Rc7
{[%clk 0:00:12.7]} 23... Rd2 {[%clk 0:00:58.3]} 24. Rc5 {[%clk 0:00:10.3]} 24...
Kf6 {[%clk 0:00:56.1]} 25. b4 {[%clk 0:00:06.6]} 25... Nxb4 {[%clk 0:00:54.5]}
26. Rb5 {[%clk 0:00:06.2]} 26... Nd3 {[%clk 0:00:48.3]} 27. Rbxb7 {[%clk
0:00:03.7]} 27... Rxb7 {[%clk 0:00:47.8]} 28. Rxb7 {[%clk 0:00:04.6]} 28... Rxa2
{[%clk 0:00:47.2]} 0-1

[Event "Early-Titled-Tuesday-Blitz-January-23-2024"]
[Site "Chess.com"]
[Date "2024.01.23"]
[Round "2"]
[White "JonasEilenberg"]
[Black "eljanov"]
[Result "0-1"]
[WhiteElo "2566"]
[BlackElo "2852"]
[TimeControl "180+1"]
[EndTime "8:16:43 PST"]
[Termination "eljanov won by checkmate"]

1. d4 {[%clk 0:03:00.9]} 1... d5 {[%clk 0:02:59.3]} 2. Bf4 {[%clk 0:03:01.5]}
2... c5 {[%clk 0:02:58.6]} 3. e3 {[%clk 0:03:01.9]} 3... Nc6 {[%clk 0:02:58.5]}
4. Nf3 {[%clk 0:03:02.4]} 4... cxd4 {[%clk 0:02:51.6]} 5. exd4 {[%clk
0:03:03.3]} 5... Bg4 {[%clk 0:02:50.9]} 6. c3 {[%clk 0:02:55.6]} 6... e6 {[%clk
0:02:50.1]} 7. Be2 {[%clk 0:02:55.3]} 7... Bd6 {[%clk 0:02:49.2]} 8. Bxd6 {[%clk
0:02:54.3]} 8... Qxd6 {[%clk 0:02:50.1]} 9. Nbd2 {[%clk 0:02:54]} 9... Nge7
{[%clk 0:02:46.3]} 10. h3 {[%clk 0:02:54.3]} 10... Bh5 {[%clk 0:02:46.3]} 11.
O-O {[%clk 0:02:54.6]} 11... O-O {[%clk 0:02:46.6]} 12. Re1 {[%clk 0:02:51.6]}
12... f6 {[%clk 0:02:41.4]} 13. c4 {[%clk 0:02:37.3]} 13... Rad8 {[%clk
0:02:37.5]} 14. c5 {[%clk 0:02:37.1]} 14... Qc7 {[%clk 0:02:31]} 15. Qb3 {[%clk
0:02:09.6]} 15... e5 {[%clk 0:02:16.1]} 16. dxe5 {[%clk 0:02:00.3]} 16... fxe5
{[%clk 0:02:16.4]} 17. Ng5 {[%clk 0:01:59.3]} 17... Nd4 {[%clk 0:02:16.2]} 18.
Qd3 {[%clk 0:01:50.1]} 18... Bg6 {[%clk 0:02:11.6]} 19. Qc3 {[%clk 0:01:48.4]}
19... Nec6 {[%clk 0:01:57.6]} 20. Rac1 {[%clk 0:01:35.2]} 20... e4 {[%clk
0:01:50.7]} 21. Nb3 {[%clk 0:01:28.6]} 21... Nxe2+ {[%clk 0:01:46.2]} 22. Rxe2
{[%clk 0:01:28]} 22... Qe7 {[%clk 0:01:46]} 23. Qg3 {[%clk 0:01:26.6]} 23... h6
{[%clk 0:01:43.8]} 24. Nf3 {[%clk 0:01:17.9]} 24... Bh5 {[%clk 0:01:44.1]} 25.
Re3 {[%clk 0:01:06.1]} 25... d4 {[%clk 0:01:36.9]} 26. Ree1 {[%clk 0:01:01]}
26... Bxf3 {[%clk 0:01:20.9]} 27. gxf3 {[%clk 0:01:01.5]} 27... e3 {[%clk
0:01:21]} 28. fxe3 {[%clk 0:00:57.3]} 28... dxe3 {[%clk 0:01:17.8]} 29. Rc3
{[%clk 0:00:54.4]} 29... e2 {[%clk 0:01:17.2]} 30. Rc2 {[%clk 0:00:53.8]} 30...
Rf6 {[%clk 0:01:06.4]} 31. Rcxe2 {[%clk 0:00:49.5]} 31... Qf7 {[%clk 0:01:07]}
32. Kh2 {[%clk 0:00:43.7]} 32... Rxf3 {[%clk 0:01:06.9]} 33. Qg2 {[%clk
0:00:41.4]} 33... Qf4+ {[%clk 0:01:02.3]} 34. Kh1 {[%clk 0:00:40.8]} 34... Rf8
{[%clk 0:01:01.6]} 35. Nd2 {[%clk 0:00:33.2]} 35... Rg3 {[%clk 0:01:00.1]} 36.
Qf1 {[%clk 0:00:23.1]} 36... Qh4 {[%clk 0:00:52.8]} 37. Re8 {[%clk 0:00:17.4]}
37... Rxh3+ {[%clk 0:00:52.7]} 38. Kg2 {[%clk 0:00:16.4]} 38... Qg3# {[%clk
0:00:52.7]} 0-1

[Event "Early-Titled-Tuesday-Blitz-January-23-2024"]
[Site "Chess.com"]
[Date "2024.01.23"]
[Round "2"]
[White "AwareIdea"]
[Black "viviania"]
[Result "0-1"]
[WhiteElo "2532"]
[BlackElo "2911"]
[TimeControl "180+1"]
[EndTime "8:16:43 PST"]
[Termination "viviania won by resignation"]

1. d4 {[%clk 0:02:59.1]} 1... Nf6 {[%clk 0:02:59.4]} 2. c4 {[%clk 0:02:58.6]}
2... e6 {[%clk 0:03:00]} 3. g3 {[%clk 0:02:58.1]} 3... c5 {[%clk 0:02:58.8]} 4.
d5 {[%clk 0:02:57.9]} 4... exd5 {[%clk 0:02:59.1]} 5. cxd5 {[%clk 0:02:58.8]}
5... b5 {[%clk 0:02:59.4]} 6. Bg2 {[%clk 0:02:55.6]} 6... d6 {[%clk 0:02:59.5]}
7. a4 {[%clk 0:02:55.3]} 7... b4 {[%clk 0:02:58.7]} 8. Nf3 {[%clk 0:02:48.1]}
8... g6 {[%clk 0:02:57.7]} 9. O-O {[%clk 0:02:47.9]} 9... Bg7 {[%clk 0:02:57.9]}
10. h3 {[%clk 0:02:47.8]} 10... O-O {[%clk 0:02:57.7]} 11. Nbd2 {[%clk
0:02:45.1]} 11... Nbd7 {[%clk 0:02:37.4]} 12. Nc4 {[%clk 0:02:41.9]} 12... Nb6
{[%clk 0:02:36.3]} 13. Nxb6 {[%clk 0:02:40.6]} 13... axb6 {[%clk 0:02:36.2]} 14.
Nd2 {[%clk 0:02:39.3]} 14... b5 {[%clk 0:02:29.6]} 15. b3 {[%clk 0:02:25.6]}
15... Nd7 {[%clk 0:02:10]} 16. Rb1 {[%clk 0:02:21.6]} 16... bxa4 {[%clk
0:02:07.3]} 17. bxa4 {[%clk 0:02:22.5]} 17... Nb6 {[%clk 0:02:07.3]} 18. Qb3
{[%clk 0:01:58.5]} 18... Nxa4 {[%clk 0:01:59.1]} 19. Nc4 {[%clk 0:01:55.8]}
19... Ba6 {[%clk 0:01:53.2]} 20. Bf4 {[%clk 0:01:45.9]} 20... Nc3 {[%clk
0:01:52.6]} 21. Rb2 {[%clk 0:01:26.9]} 21... Bb5 {[%clk 0:01:40.9]} 22. Nxd6
{[%clk 0:01:21.2]} 22... Ra3 {[%clk 0:01:22.5]} 23. Qc2 {[%clk 0:00:45.3]} 23...
Nxe2+ {[%clk 0:01:21.7]} 24. Kh2 {[%clk 0:00:44]} 24... Nxf4 {[%clk 0:01:21.7]}
25. Nxb5 {[%clk 0:00:40.6]} 25... Bxb2 {[%clk 0:01:03.8]} 26. Nxa3 {[%clk
0:00:38.3]} 26... bxa3 {[%clk 0:00:57.5]} 27. gxf4 {[%clk 0:00:36.7]} 27... Qb8
{[%clk 0:00:57.1]} 28. Qc4 {[%clk 0:00:33.3]} 28... Qb4 {[%clk 0:00:53]} 29. Qa2
{[%clk 0:00:20.6]} 29... Qxf4+ {[%clk 0:00:50.3]} 30. Kh1 {[%clk 0:00:20.9]}
30... Be5 {[%clk 0:00:46.8]} 0-1

[Event "Early-Titled-Tuesday-Blitz-January-23-2024"]
[Site "Chess.com"]
[Date "2024.01.23"]
[Round "2"]
[White "kubal123"]
[Black "GMBenjaminBok"]
[Result "0-1"]
[WhiteElo "2428"]
[BlackElo "2903"]
[TimeControl "180+1"]
[EndTime "8:16:43 PST"]
[Termination "GMBenjaminBok won by resignation"]

1. e4 {[%clk 0:02:33.4]} 1... c5 {[%clk 0:02:59.3]} 2. Nf3 {[%clk 0:02:31.5]}
2... d6 {[%clk 0:02:59.8]} 3. d4 {[%clk 0:02:30]} 3... cxd4 {[%clk 0:03:00.7]}
4. Nxd4 {[%clk 0:02:29.5]} 4... Nf6 {[%clk 0:03:01.3]} 5. Nc3 {[%clk 0:02:29.7]}
5... a6 {[%clk 0:03:01.9]} 6. h3 {[%clk 0:02:28.9]} 6... e5 {[%clk 0:03:02.1]}
7. Nde2 {[%clk 0:02:29.2]} 7... h5 {[%clk 0:03:02.1]} 8. Bg5 {[%clk 0:02:29.1]}
8... Be6 {[%clk 0:03:02.5]} 9. g3 {[%clk 0:02:28.9]} 9... Nbd7 {[%clk
0:03:01.6]} 10. Bg2 {[%clk 0:02:28.9]} 10... Be7 {[%clk 0:03:02.2]} 11. a4
{[%clk 0:02:22]} 11... Rc8 {[%clk 0:03:01.6]} 12. b3 {[%clk 0:02:20.6]} 12...
O-O {[%clk 0:03:00.6]} 13. O-O {[%clk 0:02:19.3]} 13... Rc5 {[%clk 0:02:56.4]}
14. Be3 {[%clk 0:02:17.2]} 14... Rc7 {[%clk 0:02:49.5]} 15. f4 {[%clk
0:02:16.7]} 15... Qc8 {[%clk 0:02:29]} 16. f5 {[%clk 0:02:04.4]} 16... Rxc3
{[%clk 0:02:27.7]} 17. Nxc3 {[%clk 0:01:50]} 17... Qxc3 {[%clk 0:02:28.6]} 18.
Qd2 {[%clk 0:01:36]} 18... Rc8 {[%clk 0:02:23.8]} 19. fxe6 {[%clk 0:01:34.3]}
19... fxe6 {[%clk 0:02:24.7]} 20. Rac1 {[%clk 0:01:17.8]} 20... b5 {[%clk
0:01:26.4]} 21. axb5 {[%clk 0:01:06.3]} 21... axb5 {[%clk 0:01:27.3]} 22. Qxc3
{[%clk 0:01:05.5]} 22... Rxc3 {[%clk 0:01:26.8]} 23. Kf2 {[%clk 0:00:59.7]}
23... d5 {[%clk 0:01:23.7]} 24. exd5 {[%clk 0:00:44]} 24... exd5 {[%clk
0:01:24.6]} 25. Rfd1 {[%clk 0:00:40.1]} 25... Ba3 {[%clk 0:01:23]} 26. Ra1
{[%clk 0:00:15.2]} 26... Rxc2+ {[%clk 0:01:17.3]} 27. Rd2 {[%clk 0:00:15.7]}
27... Rxd2+ {[%clk 0:01:15.3]} 28. Bxd2 {[%clk 0:00:16.6]} 28... Bc5+ {[%clk
0:01:15.6]} 29. Be3 {[%clk 0:00:17]} 29... d4 {[%clk 0:01:15.6]} 30. Bg5 {[%clk
0:00:15.8]} 30... e4 {[%clk 0:01:12.4]} 31. Ra8+ {[%clk 0:00:14.6]} 31... Kf7
{[%clk 0:01:09.5]} 32. Rc8 {[%clk 0:00:14.7]} 32... d3+ {[%clk 0:01:01.5]} 33.
Ke1 {[%clk 0:00:15]} 33... e3 {[%clk 0:00:53.9]} 34. Bc6 {[%clk 0:00:15.1]}
34... Bb4+ {[%clk 0:00:52.4]} 0-1

[Event "Early-Titled-Tuesday-Blitz-January-23-2024"]
[Site "Chess.com"]
[Date "2024.01.23"]
[Round "2"]
[White "SandwichOSaumon"]
[Black "carloseduar100"]
[Result "1-0"]
[WhiteElo "2518"]
[BlackElo "2283"]
[TimeControl "180+1"]
[EndTime "8:16:43 PST"]
[Termination "SandwichOSaumon won by resignation"]

1. e4 {[%clk 0:02:56.6]} 1... e6 {[%clk 0:02:54.1]} 2. d4 {[%clk 0:02:55.3]}
2... d5 {[%clk 0:02:54.2]} 3. Nd2 {[%clk 0:02:55.7]} 3... c5 {[%clk 0:02:53.2]}
4. exd5 {[%clk 0:02:55.8]} 4... Qxd5 {[%clk 0:02:52.4]} 5. Ngf3 {[%clk
0:02:56.4]} 5... cxd4 {[%clk 0:02:50.9]} 6. Bc4 {[%clk 0:02:57]} 6... Qd7 {[%clk
0:02:50.2]} 7. O-O {[%clk 0:02:56.3]} 7... Nc6 {[%clk 0:02:50.7]} 8. Nb3 {[%clk
0:02:56.4]} 8... Nf6 {[%clk 0:02:51.3]} 9. Nbxd4 {[%clk 0:02:54.8]} 9... Nxd4
{[%clk 0:02:52.2]} 10. Nxd4 {[%clk 0:02:55]} 10... a6 {[%clk 0:02:52.5]} 11. Bb3
{[%clk 0:02:54.2]} 11... Bd6 {[%clk 0:02:51.5]} 12. c3 {[%clk 0:02:53.2]} 12...
Qc7 {[%clk 0:02:51.7]} 13. h3 {[%clk 0:02:51.9]} 13... b5 {[%clk 0:02:51.8]} 14.
Re1 {[%clk 0:02:43]} 14... Bb7 {[%clk 0:02:49.4]} 15. Bxe6 {[%clk 0:02:32.6]}
15... O-O {[%clk 0:02:25.8]} 16. Bb3 {[%clk 0:02:19.1]} 16... Rad8 {[%clk
0:02:24.6]} 17. Be3 {[%clk 0:02:18.2]} 17... Ne4 {[%clk 0:02:14.5]} 18. Qg4
{[%clk 0:02:10.9]} 18... Bh2+ {[%clk 0:01:51.4]} 19. Kh1 {[%clk 0:02:10.4]}
19... Be5 {[%clk 0:01:51.9]} 20. Rad1 {[%clk 0:02:01.2]} 20... Rfe8 {[%clk
0:01:35.2]} 21. Kg1 {[%clk 0:01:55.3]} 21... Bh2+ {[%clk 0:01:32]} 22. Kf1
{[%clk 0:01:53.4]} 22... Be5 {[%clk 0:01:26.8]} 23. Nf3 {[%clk 0:01:48.7]} 23...
Bf6 {[%clk 0:01:25.3]} 24. Bd4 {[%clk 0:01:46.1]} 24... a5 {[%clk 0:01:14.5]}
25. Bxf6 {[%clk 0:01:37.7]} 25... Nxf6 {[%clk 0:01:14.7]} 26. Qg3 {[%clk
0:01:31.4]} 26... Qxg3 {[%clk 0:01:14.5]} 27. fxg3 {[%clk 0:01:32.3]} 27... b4
{[%clk 0:01:13.6]} 28. Ne5 {[%clk 0:01:20.2]} 28... Bd5 {[%clk 0:01:10.6]} 29.
Bxd5 {[%clk 0:01:17.8]} 29... Rxd5 {[%clk 0:01:07.4]} 30. Rxd5 {[%clk
0:01:13.2]} 30... Nxd5 {[%clk 0:01:08.3]} 31. c4 {[%clk 0:01:13.9]} 31... Nb6
{[%clk 0:01:00.5]} 32. b3 {[%clk 0:01:06.3]} 32... f6 {[%clk 0:00:58.4]} 33. Nc6
{[%clk 0:01:05.3]} 33... Rxe1+ {[%clk 0:00:58.2]} 34. Kxe1 {[%clk 0:01:06.2]}
34... a4 {[%clk 0:00:54.6]} 35. Nxb4 {[%clk 0:01:05.9]} 35... axb3 {[%clk
0:00:54.9]} 36. axb3 {[%clk 0:01:06.7]} 36... Kf7 {[%clk 0:00:55.1]} 37. Kd2
{[%clk 0:01:06.5]} 37... Ke6 {[%clk 0:00:54.9]} 38. Nd3 {[%clk 0:01:05]} 38...
g5 {[%clk 0:00:54.1]} 39. Kc3 {[%clk 0:01:04.2]} 39... h5 {[%clk 0:00:53.2]} 40.
b4 {[%clk 0:01:04.5]} 40... f5 {[%clk 0:00:51.9]} 41. Kd4 {[%clk 0:01:02.7]}
41... Nc8 {[%clk 0:00:50.6]} 42. h4 {[%clk 0:01:01]} 42... gxh4 {[%clk 0:00:46]}
43. gxh4 {[%clk 0:00:56.6]} 43... Ne7 {[%clk 0:00:46.6]} 44. Nf4+ {[%clk
0:00:55.9]} 44... Kd6 {[%clk 0:00:45.3]} 45. b5 {[%clk 0:00:55.3]} 1-0

[Event "Early-Titled-Tuesday-Blitz-January-23-2024"]
[Site "Chess.com"]
[Date "2024.01.23"]
[Round "2"]
[White "arenal72"]
[Black "tptagain"]
[Result "0-1"]
[WhiteElo "2600"]
[BlackElo "2908"]
[TimeControl "180+1"]
[EndTime "8:16:45 PST"]
[Termination "tptagain won by checkmate"]

1. Nf3 {[%clk 0:03:00.9]} 1... d5 {[%clk 0:02:58.6]} 2. g3 {[%clk 0:03:00.5]}
2... c5 {[%clk 0:02:58.6]} 3. Bg2 {[%clk 0:02:58.9]} 3... Nf6 {[%clk 0:02:58.8]}
4. O-O {[%clk 0:02:56.9]} 4... e6 {[%clk 0:02:58.7]} 5. d4 {[%clk 0:02:56.8]}
5... cxd4 {[%clk 0:02:56.9]} 6. Nxd4 {[%clk 0:02:56.1]} 6... e5 {[%clk
0:02:53.9]} 7. Nb3 {[%clk 0:02:47]} 7... Be7 {[%clk 0:02:47]} 8. Bg5 {[%clk
0:02:40.9]} 8... Be6 {[%clk 0:02:46]} 9. Nc3 {[%clk 0:02:38]} 9... Nbd7 {[%clk
0:02:43.8]} 10. e4 {[%clk 0:02:09.9]} 10... dxe4 {[%clk 0:02:37.2]} 11. Nxe4
{[%clk 0:02:01.4]} 11... Nxe4 {[%clk 0:02:19.5]} 12. Bxe7 {[%clk 0:01:56.8]}
12... Qxe7 {[%clk 0:02:20.4]} 13. Bxe4 {[%clk 0:01:56.1]} 13... Nf6 {[%clk
0:02:17.5]} 14. Qe2 {[%clk 0:01:32.1]} 14... O-O {[%clk 0:02:13.3]} 15. Bg2
{[%clk 0:01:30.8]} 15... Bf5 {[%clk 0:02:06.6]} 16. c3 {[%clk 0:01:23.7]} 16...
Rad8 {[%clk 0:01:57.5]} 17. Rad1 {[%clk 0:01:20.5]} 17... b6 {[%clk 0:01:56.4]}
18. h3 {[%clk 0:01:01.5]} 18... h5 {[%clk 0:01:53.5]} 19. Rfe1 {[%clk
0:00:57.5]} 19... Rfe8 {[%clk 0:01:45.8]} 20. Rxd8 {[%clk 0:00:42.4]} 20... Qxd8
{[%clk 0:01:45.3]} 21. Rd1 {[%clk 0:00:42.5]} 21... Qc7 {[%clk 0:01:42.2]} 22.
Qd2 {[%clk 0:00:39.8]} 22... Qc8 {[%clk 0:01:06.3]} 23. Kh2 {[%clk 0:00:36.8]}
23... Be4 {[%clk 0:01:02.8]} 24. Bxe4 {[%clk 0:00:33.7]} 24... Nxe4 {[%clk
0:01:03.7]} 25. Qe3 {[%clk 0:00:33.5]} 25... Qf5 {[%clk 0:01:02.7]} 26. Kg2
{[%clk 0:00:20.5]} 26... Ng5 {[%clk 0:00:57.9]} 27. h4 {[%clk 0:00:20.4]} 27...
Qh3+ {[%clk 0:00:57.9]} 28. Kg1 {[%clk 0:00:20.1]} 28... Qg4 {[%clk 0:00:58.8]}
29. Rc1 {[%clk 0:00:05.3]} 29... Nf3+ {[%clk 0:00:56.5]} 30. Kf1 {[%clk
0:00:04.8]} 30... Rd8 {[%clk 0:00:49.8]} 31. Qe2 {[%clk 0:00:01.3]} 31... Qh3#
{[%clk 0:00:49.3]} 0-1